fUST/lending_fUST_20240714
["ID","MTS","AMOUNT","RATE_DAILY","PERIOD"]
[331972860,1720912251330,-500.0,0.00024931,2]
[331972861,1720912251339,-500.0,0.00024931,2]
[331972862,1720912251349,-500.0,0.00024931,2]
[331972863,1720912251358,-500.0,0.00024931,2]
[331972864,1720912251368,-500.0,0.00024931,2]
[331972865,1720912251377,-500.0,0.00024931,2]
[331972866,1720912251386,-500.0,0.00024931,2]
[331972867,1720912251399,-963.17,0.00024931,2]
[331972868,1720912251408,-500.0,0.00024931,2]
[331972869,1720912251418,-151.0,0.00024931,2]
[331972870,1720912251427,-500.0,0.00024931,2]
[331972871,1720912251436,-500.0,0.00024931,2]
[331972872,1720912251445,-500.0,0.00024931,2]
[331972873,1720912251455,-151.0,0.00024931,4]
[331972874,1720912251464,-151.0,0.00024931,4]
[331972875,1720912251474,-500.0,0.00024931,2]
[331972876,1720912251484,-500.0,0.00024931,2]
[331972877,1720912251494,-500.0,0.00024931,2]
[331972878,1720912251504,-500.0,0.00024931,2]
[331972879,1720912251513,-500.0,0.00024931,2]
[331972880,1720912251522,-500.0,0.00024931,2]
[331972881,1720912251532,-500.0,0.00024931,2]
[331972882,1720912251541,-500.0,0.00024931,2]
[331972883,1720912251552,-500.0,0.00024931,2]
[331972884,1720912251562,-17501.32,0.00024931,2]
[331972885,1720912251571,-500.0,0.00024931,2]
[331972886,1720912251580,-500.0,0.00024931,2]
[331972887,1720912251590,-500.0,0.00024931,2]
[331972888,1720912251599,-553.013622,0.00024931,7]
[331972889,1720912251608,-325.09363436,0.00024931,2]
[331972890,1720912251618,-500.0,0.00024931,2]
[331972891,1720912251627,-607.94,0.00024931,2]
[331972892,1720912251636,-553.013622,0.00024931,7]
[331972893,1720912251647,-500.0,0.00024931,2]
[331972894,1720912251656,-500.0,0.00024931,2]
[331972895,1720912251665,-500.0,0.00024931,2]
[331972896,1720912251674,-2632.4,0.00024931,2]
[331972897,1720912251684,-500.0,0.00024931,2]
[331972898,1720912251693,-500.0,0.00024931,2]
[331972899,1720912251702,-500.0,0.00024931,2]
[331972900,1720912251711,-500.0,0.00024931,2]
[331972901,1720912251722,-500.0,0.00024931,2]
[331972902,1720912251732,-500.0,0.00024931,2]
[331972903,1720912251741,-500.0,0.00024931,2]
[331972904,1720912251751,-500.0,0.00024931,2]
[331972905,1720912251762,-500.0,0.00024931,2]
[331972906,1720912251771,-500.0,0.00024931,2]
[331972907,1720912251780,-500.0,0.00024931,2]
[331972908,1720912251789,-500.0,0.00024931,2]
[331972909,1720912251799,-151.0,0.00024931,7]
[331972910,1720912251808,-500.0,0.00024931,2]
[331972911,1720912251818,-500.0,0.00024931,2]
[331972912,1720912251827,-500.0,0.00024931,2]
[331972913,1720912251837,-500.0,0.00024931,2]
[331972914,1720912251846,-500.0,0.00024931,2]
[331972915,1720912251855,-500.0,0.00024931,2]
[331972916,1720912251864,-151.0,0.00024931,7]
[331972917,1720912251874,-500.0,0.00024931,2]
[331972918,1720912251883,-500.0,0.00024931,2]
[331972919,1720912251893,-500.0,0.00024931,2]
[331972920,1720912251902,-500.0,0.00024931,2]
[331972921,1720912251976,-500.0,0.00024931,2]
[331972922,1720912251987,-500.0,0.00024931,2]
[331972923,1720912251997,-500.0,0.00024931,2]
[331972924,1720912252006,-500.0,0.00024931,2]
[331972925,1720912252015,-151.0,0.00024931,7]
[331972926,1720912252024,-536.3330539,0.00024931,2]
[331972927,1720912252033,-500.0,0.00024931,2]
[331972928,1720912252042,-500.0,0.00024931,2]
[331972929,1720912252052,-500.0,0.00024931,2]
[331972930,1720912252061,-848.11,0.00024931,2]
[331972931,1720912252071,-500.0,0.00024931,2]
[331972932,1720912252080,-500.0,0.00024931,2]
[331972933,1720912252088,-151.0,0.00024931,7]
[331972934,1720912252098,-500.0,0.00024931,2]
[331972935,1720912252107,-500.0,0.00024931,2]
[331972936,1720912252116,-500.0,0.00024931,2]
[331972937,1720912252125,-500.0,0.00024931,2]
[331972938,1720912252134,-500.0,0.00024931,2]
[331972939,1720912252144,-500.0,0.00024931,2]
[331972940,1720912252153,-500.0,0.00024931,2]
[331972941,1720912252162,-151.0,0.00024976,7]
[331972942,1720912252171,-151.0,0.00024976,7]
[331972943,1720912252181,-151.0,0.00024976,7]
[331972944,1720912252190,-500.0,0.00024981,2]
[331972945,1720912252199,-3047.266826,0.00025,2]
[331972946,1720912252209,-150.112233,0.000251,7]
[331972947,1720912252218,-150.112233,0.000251,6]
[331972948,1720912252227,-302.24446742,0.00025149,2]
[331972949,1720912252239,-154.60575532,0.00025156,2]
[331972950,1720912252249,-260.5671497,0.00025156,2]
[331972951,1720912252258,-229.31956132,0.00025166,2]
[331972952,1720912252267,-3996.26055378,0.00025205,5]
[331972953,1720912252277,-500.0,0.00025205,2]
[331972954,1720912252286,-500.0,0.00025205,2]
[331972955,1720912252295,-500.0,0.00025205,2]
[331972956,1720912252305,-500.0,0.00025205,2]
[331972957,1720912252314,-500.0,0.00025205,2]
[331972958,1720912252324,-500.0,0.00025205,2]
[331972959,1720912252334,-511.53,0.00025205,2]
[331972960,1720912252343,-500.0,0.00025205,2]
[331972961,1720912252354,-500.0,0.00025205,2]
[331972962,1720912252366,-500.0,0.00025205,2]
[331972963,1720912252376,-500.0,0.00025205,2]
[331972964,1720912252385,-472.6742293,0.00025205,2]
[331972965,1720912252394,-500.0,0.00025205,2]
[331972966,1720912252405,-500.0,0.00025205,2]
[331972967,1720912252416,-303.4484443,0.00025205,2]
[331972968,1720912252426,-162.84442639,0.00025205,2]
[331972969,1720912252435,-500.0,0.00025205,2]
[331972970,1720912252445,-500.0,0.00025205,2]
[331972971,1720912252455,-500.0,0.00025205,2]
[331972972,1720912252466,-500.0,0.00025205,2]
[331972973,1720912252475,-279.65309025,0.00025205,2]
[331972974,1720912252485,-157.41178,0.00025205,7]
[331972975,1720912252494,-188.32248636,0.00025205,2]
[331972976,1720912252503,-500.0,0.00025205,2]
[331972977,1720912252513,-500.0,0.00025205,2]
[331972978,1720912252523,-500.0,0.00025205,2]
[331972979,1720912252532,-1500.0,0.00025205,2]
[331972980,1720912252543,-500.0,0.00025205,2]
[331972981,1720912252551,-151.0,0.00025205,7]
[331972982,1720912252562,-500.0,0.00025205,2]
[331972983,1720912252572,-500.0,0.00025205,2]
[331972984,1720912252581,-151.0,0.00025205,7]
[331972985,1720912252590,-500.0,0.00025205,2]
[331972986,1720912252599,-500.0,0.00025205,2]
[331972987,1720912252608,-500.0,0.00025205,2]
[331972988,1720912252617,-151.0,0.00025205,7]
[331972989,1720912252626,-500.0,0.00025205,2]
[331972990,1720912252636,-500.0,0.00025205,2]
[331972991,1720912252645,-151.0,0.00025205,7]
[331972992,1720912252655,-500.0,0.00025205,2]
[331972993,1720912252664,-500.0,0.00025205,2]
[331972994,1720912252673,-151.0,0.00025205,7]
[331972995,1720912252682,-500.0,0.00025205,2]
[331972996,1720912252692,-176.15804603,0.00025205,2]
[331972997,1720912252702,-500.0,0.00025205,2]
[331972998,1720912252713,-500.0,0.00025205,2]
[331972999,1720912252727,-269.113512,0.00025205,7]
[331973000,1720912252736,-2361.03,0.00025205,2]
[331973001,1720912252745,-151.0,0.00025205,7]
[331973002,1720912252755,-500.0,0.00025205,2]
[331973003,1720912252765,-500.0,0.00025205,2]
[331973004,1720912252775,-500.0,0.00025205,2]
[331973005,1720912252784,-500.0,0.00025205,2]
[331973006,1720912252793,-300.03960064,0.00025205,2]
[331973007,1720912252804,-151.0,0.00025205,7]
[331973008,1720912252814,-151.0,0.00025205,7]
[331973009,1720912252823,-500.0,0.00025205,2]
[331973010,1720912252832,-515.88896876,0.00025205,2]
[331973011,1720912252842,-186.040463,0.00025205,7]
[331973012,1720912252851,-200.0,0.00025205,2]
[331973013,1720912252860,-500.0,0.00025205,2]
[331973014,1720912252870,-597.07,0.00025205,2]
[331973015,1720912252879,-151.0,0.00025205,7]
[331973016,1720912252889,-151.0,0.00025205,7]
[331973017,1720912252899,-500.0,0.00025205,2]
[331973018,1720912252909,-500.0,0.00025205,2]
[331973019,1720912252918,-500.0,0.00025205,2]
[331973020,1720912252927,-500.0,0.00025205,2]
[331973021,1720912252937,-500.0,0.00025205,2]
[331973022,1720912252946,-500.0,0.00025205,2]
[331973023,1720912252956,-151.0,0.00025205,7]
[331973024,1720912252965,-519.27201685,0.00025205,2]
[331973025,1720912252975,-500.0,0.00025205,2]
[331973026,1720912252984,-500.0,0.00025205,2]
[331973027,1720912252994,-500.0,0.00025205,2]
[331973028,1720912253004,-500.0,0.00025205,2]
[331973029,1720912253013,-500.0,0.00025205,2]
[331973030,1720912253022,-500.0,0.00025205,2]
[331973031,1720912253032,-500.0,0.00025205,2]
[331973032,1720912253042,-500.0,0.00025205,2]
[331973033,1720912253051,-500.0,0.00025205,2]
[331973034,1720912253060,-500.0,0.00025205,2]
[331973035,1720912253069,-500.0,0.00025205,2]
[331973036,1720912253078,-500.0,0.00025205,2]
[331973037,1720912253088,-151.0,0.00025205,7]
[331973038,1720912253097,-394.17672297,0.00025205,2]
[331973039,1720912253106,-610.34073736,0.00025205,2]
[331973040,1720912253116,-500.0,0.00025205,2]
[331973041,1720912253126,-500.0,0.00025205,2]
[331973042,1720912253135,-500.0,0.00025205,2]
[331973043,1720912253145,-500.0,0.00025205,2]
[331973044,1720912253154,-500.0,0.00025205,2]
[331973045,1720912253164,-23.47666409,0.00025205,2]
[331973046,1720912253281,-500.0,0.00024657,2]
[331973047,1720912253291,-476.52333591,0.00025205,2]
[331973048,1720912253300,-500.0,0.00025205,2]
[331973049,1720912253375,-500.0,0.00025205,2]
[331973050,1720912253385,-500.0,0.00025205,2]
[331973051,1720912253395,-500.0,0.00025205,2]
[331973052,1720912253404,-503.32332182,0.00025205,2]
[331973053,1720912253413,-1012.98,0.00025205,2]
[331973054,1720912253423,-617.45388926,0.00025205,2]
[331973055,1720912253432,-514.15753066,0.00025205,2]
[331973056,1720912253441,-569.19840356,0.00025205,2]
[331973057,1720912253450,-500.0,0.00025205,2]
[331973058,1720912253460,-844.091574,0.00025205,7]
[331973059,1720912253470,-844.091574,0.00025205,7]
[331973060,1720912253480,-325.555478,0.00025205,7]
[331973061,1720912253489,-325.555478,0.00025205,7]
[331973062,1720912253499,-172.762044,0.00025205,7]
[331973063,1720912253508,-883.83964,0.00025205,7]
[331973064,1720912253517,-500.0,0.00025205,2]
[331973065,1720912253526,-883.83964,0.00025205,7]
[331973066,1720912253535,-368.13290089,0.00025205,2]
[331973067,1720912253547,-131.86709911,0.00025205,2]
[331973068,1720912253556,-744.407754,0.00025205,7]
[331973069,1720912253566,-500.0,0.00025205,2]
[331973070,1720912253575,-744.407754,0.00025205,7]
[331973071,1720912253584,-500.0,0.00025205,2]
[331973072,1720912253594,-500.0,0.00025205,2]
[331973073,1720912253602,-151.0,0.00025205,7]
[331973074,1720912253611,-545.835666,0.00025205,7]
[331973075,1720912253620,-500.0,0.00025205,2]
[331973076,1720912253629,-500.0,0.00025205,2]
[331973077,1720912253638,-435.90828894,0.00025205,2]
[331973078,1720912253652,-64.09171106,0.00025205,2]
[331973079,1720912253661,-151.0,0.00025205,7]
[331973080,1720912253671,-500.0,0.00025205,2]
[331973081,1720912253680,-68.97457637,0.00025205,7]
[331973082,1720912253691,-572.82677463,0.00025205,7]
[331973083,1720912253700,-500.0,0.00025205,2]
[331973084,1720912253710,-500.0,0.00025205,2]
[331973085,1720912253720,-106.15432161,0.00025205,2]
[331973090,1720912369584,273.37336231,9.9e-05,2]
[331973091,1720912378106,273.37336231,9.9e-05,2]
[331973092,1720912391539,627.64781782,0.00012,2]
[331973095,1720912395584,571.76487024,0.00012,2]
[331973097,1720912398482,828.65736599,0.00015,2]
[331973098,1720912403113,284.99984706,0.00012,2]
[331973101,1720912405359,281.40377478,0.00012,2]
[331973102,1720912406344,3081.02605815,0.00012,2]
[331973103,1720912411640,4265.36788188,0.00012,2]
[331973104,1720912418159,287.51223328,0.00015,2]
[331973106,1720912421882,19412.56521814,9.9e-05,2]
[331973109,1720912447995,1636.98995052,0.00012,2]
[331973119,1720912514017,533.61474575,0.00014545,2]
[331973120,1720912531415,250.0,0.00015479,2]
[331973121,1720912531643,250.0,0.00015521,2]
[331973122,1720912531911,250.0,0.00015564,2]
[331973123,1720912532146,250.0,0.00015606,2]
[331973124,1720912532353,250.0,0.00015649,2]
[331973125,1720912532597,250.0,0.00015691,2]
[331973126,1720912532881,250.0,0.00015734,2]
[331973127,1720912533091,250.0,0.00015776,2]
[331973128,1720912533334,250.0,0.00015819,2]
[331973129,1720912533681,250.0,0.00015861,2]
[331973130,1720912533761,250.0,0.00015904,2]
[331973131,1720912534243,250.0,0.00015946,2]
[331973132,1720912534474,250.0,0.00015989,2]
[331973133,1720912553703,6347.23590462,0.00015333,2]
[331973134,1720912553732,1097.26288888,0.00015333,2]
[331973135,1720912581757,4175.7958124,0.00015333,2]
[331973148,1720912663654,9299.9929492,0.00015212,2]
[331973149,1720912680633,2066.23518086,0.00015333,2]
[331973150,1720912681792,585.251714,0.00015212,2]
[331973162,1720912838888,158.28310136,0.00014999,7]
[331973163,1720912855123,656.77900135,0.00015,2]
[331973164,1720912869867,1491.29218622,0.00014999,2]
[331973173,1720912947062,609.6965354,0.00015194,2]
[331973180,1720912962284,823.5471562,0.00015194,2]
[331973181,1720912982246,441.04727659,0.00014999,2]
[331973187,1720913048862,3000.0,0.0001519,2]
[331973188,1720913063996,24900.0,0.0001519,2]
[331973191,1720913106494,250.0,0.00015366,2]
[331973192,1720913106721,250.0,0.00015408,2]
[331973193,1720913107217,250.0,0.0001545,2]
[331973194,1720913107404,250.0,0.00015492,2]
[331973195,1720913107677,250.0,0.00015534,2]
[331973196,1720913107887,250.0,0.00015576,2]
[331973197,1720913108109,250.0,0.00015619,2]
[331973198,1720913108323,250.0,0.00015661,2]
[331973204,1720913233857,211.5186256,0.00014999,2]
[331973205,1720913235138,292.625857,0.00015033,2]
[331973206,1720913236507,156.42124676,0.00014999,2]
[331973207,1720913245162,-250.0,0.00015703,2]
[331973208,1720913245186,-250.0,0.00015745,2]
[331973209,1720913245208,-250.0,0.00015787,2]
[331973210,1720913245232,-250.0,0.00015829,2]
[331973211,1720913245257,-250.0,0.00015871,2]
[331973212,1720913245279,-250.0,0.00015914,2]
[331973213,1720913245301,-867.74210861,0.00015931,2]
[331973214,1720913245324,-250.0,0.00015956,2]
[331973215,1720913245347,-250.0,0.00015998,2]
[331973216,1720913245370,-250.0,0.0001604,2]
[331973217,1720913245513,-250.0,0.00016082,2]
[331973218,1720913245539,-250.0,0.00016124,2]
[331973219,1720913245561,-250.0,0.00016166,2]
[331973220,1720913245584,-300.0,0.00016253,2]
[331973221,1720913245605,-300.0,0.00016253,2]
[331973222,1720913245626,-500.0,0.00016254,2]
[331973223,1720913245647,-500.0,0.00016254,2]
[331973224,1720913245668,-500.0,0.00016254,2]
[331973225,1720913245688,-500.0,0.00016254,2]
[331973226,1720913245709,-500.0,0.00016254,2]
[331973227,1720913245729,-229.93362594,0.00016254,2]
[331973228,1720913245751,-16372.93467576,0.00016255,2]
[331973229,1720913245772,-15631.36746532,0.00016255,2]
[331973230,1720913245796,-15117.5007217,0.00016255,2]
[331973231,1720913245819,-10946.65975118,0.00016255,2]
[331973232,1720913245839,-276.84511174,0.000165,2]
[331973233,1720913245861,-420.0,0.00017765,2]
[331973234,1720913245882,-420.0,0.00017878,2]
[331973235,1720913245902,-3730.48286493,0.000179,2]
[331973236,1720913245922,-287.26261445,0.00018,2]
[331973237,1720913245942,-191.27347695,0.00018798,2]
[331973238,1720913245965,-174.64145019,0.00018899,2]
[331973239,1720913245986,-197.44371632,0.00019039,2]
[331973240,1720913246006,-250.0,0.00019041,2]
[331973241,1720913246027,-162.34596,0.00019178,2]
[331973242,1720913246053,-587.0,0.00019418,2]
[331973243,1720913246074,-587.0,0.00019666,2]
[331973244,1720913246096,-909.85449298,0.0002,2]
[331973245,1720913246117,-154.59033561,0.0002,2]
[331973246,1720913246138,-154.55950541,0.0002,2]
[331973247,1720913246160,-154.57491897,0.0002,2]
[331973248,1720913246181,-154.55950541,0.0002,2]
[331973249,1720913246201,-154.55950541,0.0002,2]
[331973250,1720913246221,-154.55950541,0.0002,2]
[331973251,1720913246242,-285.0,0.00021,2]
[331973252,1720913246263,-750.0,0.00021096,2]
[331973253,1720913246284,-823.0,0.00021225,2]
[331973254,1720913246305,-622.52655598,0.00021466,2]
[331973255,1720913246325,-823.0,0.00021633,2]
[331973256,1720913246346,-1066.36077455,0.00021917,2]
[331973257,1720913246366,-166.666666,0.00021918,2]
[331973258,1720913246386,-377.82698926,0.00022,2]
[331973259,1720913246406,-880.76070816,0.00022265,2]
[331973260,1720913246427,-154.55950541,0.0002237,2]
[331973261,1720913246448,-166.666666,0.00022431,2]
[331973262,1720913246470,-620.1263278,0.00022539,2]
[331973263,1720913246491,-292.625857,0.00022549,2]
[331973264,1720913246515,-4009.50430287,0.00022789,2]
[331973265,1720913246538,-207.80532255,0.0002282,2]
[331973266,1720913246560,-500.0,0.0002282,2]
[331973267,1720913246583,-500.0,0.0002282,2]
[331973268,1720913246605,-500.0,0.0002282,2]
[331973269,1720913246626,-172.84407899,0.0002282,2]
[331973270,1720913246649,-434.82814522,0.0002282,2]
[331973271,1720913246670,-462.21446551,0.0002282,2]
[331973272,1720913246693,-500.0,0.0002282,2]
[331973273,1720913246714,-464.37338722,0.0002282,2]
[331973274,1720913246737,-500.0,0.0002282,2]
[331973275,1720913246759,-500.0,0.0002282,2]
[331973276,1720913246782,-27770.630281,0.00022821,3]
[331973277,1720913246804,-2729.57122453,0.00022831,2]
[331973278,1720913246824,-480.89692261,0.00022943,2]
[331973279,1720913246846,-166.666666,0.00022944,2]
[331973280,1720913246868,-1086.0,0.000232,2]
[331973281,1720913246891,-4009.50430286,0.00023231,2]
[331973282,1720913246912,-20727.8833951,0.00023453,2]
[331973283,1720913246933,-166.666666,0.00023456,2]
[331973284,1720913246955,-620.00631639,0.00023666,2]
[331973285,1720913246977,-4009.50430286,0.00023673,2]
[331973286,1720913247000,-1152.0,0.00023796,2]
[331973287,1720913247021,-166.666666,0.00023969,2]
[331973288,1720913247048,-4009.50430286,0.00024115,2]
[331973289,1720913247069,-166.666666,0.00024482,2]
[331973290,1720913247092,-2000.0,0.00024537,2]
[331973291,1720913247117,-4009.50430286,0.00024557,2]
[331973292,1720913247139,-150.112233,0.000246,5]
[331973293,1720913247161,-27770.630281,0.00024647,3]
[331973294,1720913247184,-111082.521124,0.00024647,3]
[331973295,1720913247208,-18464.41099465,0.00024657,5]
[331973296,1720913247229,-500.0,0.00024657,2]
[331973297,1720913247250,-500.35695851,0.00024657,2]
[331973298,1720913247271,-500.0,0.00024657,2]
[331973299,1720913247293,-500.0,0.00024657,2]
[331973300,1720913247315,-500.0,0.00024657,2]
[331973301,1720913247337,-500.0,0.00024657,2]
[331973302,1720913247359,-500.0,0.00024657,2]
[331973303,1720913247381,-500.0,0.00024657,2]
[331973304,1720913247403,-520.93878119,0.00024657,2]
[331973305,1720913247425,-500.0,0.00024657,2]
[331973306,1720913247446,-500.0,0.00024657,2]
[331973307,1720913247467,-500.0,0.00024657,2]
[331973308,1720913247488,-500.0,0.00024657,2]
[331973309,1720913247525,-520.64622132,0.00024657,2]
[331973310,1720913247558,-500.0,0.00024657,2]
[331973311,1720913247584,-500.0,0.00024657,2]
[331973312,1720913247607,-500.0,0.00024657,2]
[331973313,1720913247631,-500.0,0.00024657,2]
[331973314,1720913247655,-500.0,0.00024657,2]
[331973315,1720913247677,-500.0,0.00024657,2]
[331973316,1720913247700,-500.0,0.00024657,2]
[331973317,1720913247723,-500.0,0.00024657,2]
[331973318,1720913247746,-501.57932443,0.00024657,2]
[331973319,1720913247771,-500.0,0.00024657,2]
[331973320,1720913247796,-500.0,0.00024657,2]
[331973321,1720913247820,-500.0,0.00024657,2]
[331973322,1720913247982,-500.0,0.00024657,2]
[331973323,1720913248005,-500.0,0.00024657,2]
[331973324,1720913248030,-500.0,0.00024657,2]
[331973325,1720913248071,-500.0,0.00024657,2]
[331973326,1720913248095,-500.0,0.00024657,2]
[331973327,1720913248118,-500.0,0.00024657,2]
[331973328,1720913248140,-500.0,0.00024657,2]
[331973329,1720913248162,-500.0,0.00024657,2]
[331973330,1720913248183,-500.0,0.00024657,2]
[331973331,1720913248203,-500.0,0.00024657,2]
[331973332,1720913248229,-506.83848495,0.00024657,2]
[331973333,1720913248250,-500.0,0.00024657,2]
[331973334,1720913248272,-500.0,0.00024657,2]
[331973335,1720913248293,-500.0,0.00024657,2]
[331973336,1720913248315,-500.0,0.00024657,2]
[331973337,1720913248335,-500.0,0.00024657,2]
[331973338,1720913248357,-500.0,0.00024657,2]
[331973339,1720913248379,-500.0,0.00024657,2]
[331973340,1720913248401,-500.0,0.00024657,2]
[331973341,1720913248424,-500.0,0.00024657,2]
[331973342,1720913248449,-500.0,0.00024657,2]
[331973343,1720913248472,-500.0,0.00024657,2]
[331973344,1720913248494,-599.143082,0.00024657,2]
[331973345,1720913248517,-500.0,0.00024657,2]
[331973346,1720913248540,-500.0,0.00024657,2]
[331973347,1720913248582,-500.0,0.00024657,2]
[331973348,1720913248604,-500.0,0.00024657,2]
[331973349,1720913248626,-500.0,0.00024657,2]
[331973350,1720913248647,-500.0,0.00024657,2]
[331973351,1720913248670,-500.0,0.00024657,2]
[331973352,1720913248691,-500.0,0.00024657,2]
[331973353,1720913248723,-500.0,0.00024657,2]
[331973354,1720913248745,-500.0,0.00024657,2]
[331973355,1720913248766,-418.09076287,0.00024657,2]
[331973356,1720913248789,-496.15694575,0.00024657,2]
[331973357,1720913248814,-500.0,0.00024657,2]
[331973358,1720913248836,-1500.0,0.00024657,2]
[331973359,1720913248858,-500.0,0.00024657,2]
[331973360,1720913248880,-500.0,0.00024657,2]
[331973361,1720913248902,-500.0,0.00024657,2]
[331973362,1720913248924,-310.57533414,0.00024657,2]
[331973363,1720913249274,-189.42466586,0.00024657,2]
[331973364,1720913249297,-502.5302188,0.00024657,2]
[331973365,1720913249319,-500.0,0.00024657,2]
[331973366,1720913249340,-500.0,0.00024657,2]
[331973367,1720913249362,-500.0,0.00024657,2]
[331973368,1720913249384,-500.0,0.00024657,2]
[331973369,1720913249405,-500.0,0.00024657,2]
[331973370,1720913249426,-500.0,0.00024657,2]
[331973371,1720913249448,-594.66254035,0.00024657,2]
[331973372,1720913249469,-61.80188084,0.00024657,2]
[331973373,1720913253143,-154.55950541,0.00018983,2]
[331973374,1720913253165,-151.18583801,0.00024608,2]
[331973375,1720913253187,-440.86220154,0.00024657,2]
[331973376,1720913253208,-500.0,0.00024657,2]
[331973377,1720913253229,-500.0,0.00024657,2]
[331973378,1720913253250,-500.0,0.00024657,2]
[331973379,1720913253271,-500.0,0.00024657,2]
[331973380,1720913253292,-500.0,0.00024657,2]
[331973381,1720913253312,-500.0,0.00024657,2]
[331973382,1720913253334,-500.0,0.00024657,2]
[331973383,1720913253356,-500.0,0.00024657,2]
[331973384,1720913253376,-2160.85,0.00024657,2]
[331973385,1720913253408,-500.0,0.00024657,2]
[331973386,1720913253437,-500.0,0.00024657,2]
[331973387,1720913253459,-500.0,0.00024657,2]
[331973388,1720913253481,-500.0,0.00024657,2]
[331973389,1720913253504,-500.0,0.00024657,2]
[331973390,1720913253526,-500.0,0.00024657,2]
[331973391,1720913253548,-500.0,0.00024657,2]
[331973392,1720913253571,-500.0,0.00024657,2]
[331973393,1720913253733,-500.0,0.00024657,2]
[331973394,1720913253756,-500.0,0.00024657,2]
[331973395,1720913253779,-500.0,0.00024657,2]
[331973396,1720913253801,-501.5952988,0.00024657,2]
[331973397,1720913253821,-500.0,0.00024657,2]
[331973398,1720913253842,-500.0,0.00024657,2]
[331973399,1720913253864,-500.0,0.00024657,2]
[331973400,1720913253886,-500.0,0.00024657,2]
[331973401,1720913253908,-500.0,0.00024657,2]
[331973402,1720913253928,-200.0,0.00024657,2]
[331973403,1720913253950,-500.0,0.00024657,2]
[331973404,1720913253971,-520.027836,0.00024657,2]
[331973405,1720913253993,-500.0,0.00024657,2]
[331973406,1720913254014,-500.0,0.00024657,2]
[331973407,1720913254039,-500.0,0.00024657,2]
[331973408,1720913254064,-500.0,0.00024657,2]
[331973409,1720913254085,-500.0,0.00024657,2]
[331973410,1720913254107,-500.0,0.00024657,2]
[331973411,1720913254129,-66.32719024,0.00024657,2]
[331973418,1720913355222,-185.89247832,0.000191,2]
[331973419,1720913355244,-2302.1933226,0.000199,2]
[331973420,1720913355264,-241.86213051,0.000199,2]
[331973421,1720913355284,-300.0,0.00019999,2]
[331973422,1720913355305,-192.21484733,0.00019999,2]
[331973423,1720913355326,-20029.53064727,0.0002,2]
[331973424,1720913355350,-52981.20603348,0.0002,2]
[331973425,1720913355370,-738.48278304,0.0002,2]
[331973502,1720913431953,-300.0,0.00019999,2]
[331973504,1720913431964,-5668.1598834,0.0002,2]
[331973507,1720913431977,-4032.3183316,0.0002,2]
[331973530,1720913437990,-243.11985946,0.0002,2]
[331973531,1720913438000,-225.9011813,0.0002,2]
[331973532,1720913438009,-428.62808121,0.0002,2]
[331973533,1720913438019,-1000.0,0.0002,2]
[331973534,1720913438028,-6871.28306613,0.0002,2]
[331973535,1720913438038,-154.55950541,0.0002,2]
[331973536,1720913438050,-764.43027422,0.0002,2]